[Event "Late-Titled-Tuesday-Blitz-January-16-2024"]
[Site "Chess.com"]
[Date "2024.01.16"]
[Round "11"]
[White "GAusal"]
[Black "JaackCamel"]
[Result "1-0"]
[WhiteElo "2260"]
[BlackElo "2154"]
[TimeControl "180+1"]
[EndTime "16:06:50 PST"]
[Termination "GAusal won by resignation"]

1. d4 {[%clk 0:03:00.9]} 1... d5 {[%clk 0:02:59.4]} 2. Nf3 {[%clk 0:03:00.7]}
2... e6 {[%clk 0:02:58.7]} 3. Bf4 {[%clk 0:03:00.6]} 3... Bd6 {[%clk 0:02:56.4]}
4. Bxd6 {[%clk 0:02:59.2]} 4... Qxd6 {[%clk 0:02:56.1]} 5. e3 {[%clk 0:02:59.8]}
5... Nf6 {[%clk 0:02:55.6]} 6. c3 {[%clk 0:02:59.1]} 6... O-O {[%clk 0:02:55.1]}
7. Bd3 {[%clk 0:02:59]} 7... c5 {[%clk 0:02:54.8]} 8. Nbd2 {[%clk 0:02:58.2]}
8... Nc6 {[%clk 0:02:48.1]} 9. O-O {[%clk 0:02:56.7]} 9... e5 {[%clk 0:02:47.4]}
10. dxe5 {[%clk 0:02:55.8]} 10... Nxe5 {[%clk 0:02:47.3]} 11. Nxe5 {[%clk
0:02:55.4]} 11... Qxe5 {[%clk 0:02:47.7]} 12. Nf3 {[%clk 0:02:55.5]} 12... Qd6
{[%clk 0:02:44.9]} 13. Be2 {[%clk 0:02:52.2]} 13... Rd8 {[%clk 0:02:40.6]} 14.
Qc2 {[%clk 0:02:51.3]} 14... Bg4 {[%clk 0:02:34.3]} 15. h3 {[%clk 0:02:50.7]}
15... Bh5 {[%clk 0:02:34.1]} 16. Rad1 {[%clk 0:02:49.6]} 16... Bg6 {[%clk
0:02:33.3]} 17. Qc1 {[%clk 0:02:47.5]} 17... Qe7 {[%clk 0:02:13.8]} 18. Nh4
{[%clk 0:02:45.8]} 18... Be4 {[%clk 0:01:56.3]} 19. Nf3 {[%clk 0:02:42.5]} 19...
h6 {[%clk 0:01:54.6]} 20. Rd2 {[%clk 0:02:41.6]} 20... Rd7 {[%clk 0:01:52.4]}
21. Rfd1 {[%clk 0:02:40.6]} 21... Rad8 {[%clk 0:01:52.5]} 22. Nh2 {[%clk
0:02:37.8]} 22... Bf5 {[%clk 0:01:36.7]} 23. Bd3 {[%clk 0:02:35.5]} 23... Bxd3
{[%clk 0:01:34.4]} 24. Rxd3 {[%clk 0:02:35.1]} 24... Ne4 {[%clk 0:01:23.8]} 25.
Nf3 {[%clk 0:02:28.7]} 25... c4 {[%clk 0:01:21.5]} 26. Rd4 {[%clk 0:02:24.9]}
26... Nc5 {[%clk 0:01:21.6]} 27. Qd2 {[%clk 0:02:13.5]} 27... Ne4 {[%clk
0:01:16.6]} 28. Qe1 {[%clk 0:02:10.2]} 28... Nc5 {[%clk 0:01:14.4]} 29. Qd2
{[%clk 0:02:05.5]} 29... Ne4 {[%clk 0:01:14]} 30. Qe1 {[%clk 0:02:05]} 30... Nc5
{[%clk 0:01:14]} 31. Rg4 {[%clk 0:01:56]} 31... Nd3 {[%clk 0:01:11]} 32. Qd2
{[%clk 0:01:53.8]} 32... f5 {[%clk 0:00:58]} 33. Rd4 {[%clk 0:01:49.3]} 33...
Qf7 {[%clk 0:00:48.4]} 34. Ne1 {[%clk 0:01:45.6]} 34... Nc5 {[%clk 0:00:46.4]}
35. Nf3 {[%clk 0:01:41.7]} 35... Nd3 {[%clk 0:00:44.3]} 36. Rxd3 {[%clk
0:01:41.3]} 36... cxd3 {[%clk 0:00:44.2]} 37. Ne5 {[%clk 0:01:41.5]} 37... Qe6
{[%clk 0:00:42.4]} 38. Nxd7 {[%clk 0:01:41.5]} 38... Rxd7 {[%clk 0:00:41.5]} 39.
Qxd3 {[%clk 0:01:41.8]} 39... Qe4 {[%clk 0:00:30.6]} 40. Qxe4 {[%clk 0:01:37.2]}
40... fxe4 {[%clk 0:00:30.5]} 41. c4 {[%clk 0:01:26.1]} 41... Rc7 {[%clk
0:00:23.3]} 42. cxd5 {[%clk 0:01:21.8]} 42... Kf7 {[%clk 0:00:20.9]} 43. d6
{[%clk 0:01:15.4]} 43... Rd7 {[%clk 0:00:19.4]} 44. g4 {[%clk 0:01:10.9]} 44...
Ke6 {[%clk 0:00:19.2]} 45. Kg2 {[%clk 0:01:05.5]} 45... Ke5 {[%clk 0:00:19.6]}
46. Kg3 {[%clk 0:01:02.5]} 46... g5 {[%clk 0:00:19.6]} 47. h4 {[%clk 0:00:58.2]}
47... Ke6 {[%clk 0:00:15.3]} 48. hxg5 {[%clk 0:00:54.9]} 48... hxg5 {[%clk
0:00:15.8]} 49. Rd4 {[%clk 0:00:53.5]} 49... Ke5 {[%clk 0:00:16]} 50. b3 {[%clk
0:00:48.3]} 50... Rxd6 {[%clk 0:00:14.4]} 51. Rxd6 {[%clk 0:00:48.1]} 51... Kxd6
{[%clk 0:00:14.9]} 52. f3 {[%clk 0:00:48.6]} 52... Ke5 {[%clk 0:00:15.2]} 53.
f4+ {[%clk 0:00:42.1]} 53... gxf4+ {[%clk 0:00:14.8]} 54. exf4+ {[%clk
0:00:42.3]} 54... Kd4 {[%clk 0:00:15.4]} 55. Kf2 {[%clk 0:00:42]} 55... Kd3
{[%clk 0:00:15.8]} 56. Ke1 {[%clk 0:00:41.6]} 56... Kc2 {[%clk 0:00:13.7]} 57.
g5 {[%clk 0:00:41.7]} 1-0

[Event "Late-Titled-Tuesday-Blitz-January-16-2024"]
[Site "Chess.com"]
[Date "2024.01.16"]
[Round "11"]
[White "dmitrijiIM"]
[Black "Hikaru"]
[Result "0-1"]
[WhiteElo "2895"]
[BlackElo "3222"]
[TimeControl "180+1"]
[EndTime "16:06:53 PST"]
[Termination "Hikaru won by resignation"]

1. e4 {[%clk 0:02:57.3]} 1... a6 {[%clk 0:02:59.5]} 2. d4 {[%clk 0:02:54.1]}
2... e6 {[%clk 0:02:59.6]} 3. Nf3 {[%clk 0:02:45.3]} 3... d5 {[%clk 0:02:56.5]}
4. exd5 {[%clk 0:02:44.3]} 4... exd5 {[%clk 0:02:56.9]} 5. Bd3 {[%clk
0:02:44.7]} 5... Bd6 {[%clk 0:02:54.6]} 6. O-O {[%clk 0:02:31.5]} 6... Nc6
{[%clk 0:02:54.5]} 7. Re1+ {[%clk 0:02:31.7]} 7... Nge7 {[%clk 0:02:55]} 8. c3
{[%clk 0:02:31.5]} 8... Bg4 {[%clk 0:02:52.8]} 9. h3 {[%clk 0:02:31.8]} 9... Bh5
{[%clk 0:02:52.9]} 10. b4 {[%clk 0:02:24.2]} 10... Bg6 {[%clk 0:02:49.2]} 11. a4
{[%clk 0:02:21.5]} 11... Qd7 {[%clk 0:02:49.5]} 12. Bxg6 {[%clk 0:01:43.4]}
12... hxg6 {[%clk 0:02:49.3]} 13. Nbd2 {[%clk 0:01:29]} 13... f6 {[%clk
0:02:49.2]} 14. Nb3 {[%clk 0:01:25.6]} 14... Kf7 {[%clk 0:02:45.8]} 15. Nc5
{[%clk 0:01:24]} 15... Bxc5 {[%clk 0:02:41.9]} 16. dxc5 {[%clk 0:01:18.1]} 16...
g5 {[%clk 0:02:35.7]} 17. Be3 {[%clk 0:00:47.8]} 17... Ng6 {[%clk 0:02:24.5]}
18. c4 {[%clk 0:00:35.1]} 18... Nxb4 {[%clk 0:02:14]} 19. Qb3 {[%clk 0:00:34.7]}
19... a5 {[%clk 0:02:13.7]} 20. cxd5 {[%clk 0:00:33.4]} 20... Qxd5 {[%clk
0:02:09.5]} 21. Qc3 {[%clk 0:00:32.8]} 21... Qd3 {[%clk 0:01:51]} 22. Qb2 {[%clk
0:00:31.6]} 22... Qc2 {[%clk 0:01:50]} 23. Qa3 {[%clk 0:00:30.3]} 23... Rhd8
{[%clk 0:01:49.6]} 24. Rac1 {[%clk 0:00:26.4]} 24... Qd3 {[%clk 0:01:45.5]} 25.
Qb2 {[%clk 0:00:26.3]} 25... Qd5 {[%clk 0:01:45]} 26. Red1 {[%clk 0:00:25.2]}
26... Qa2 {[%clk 0:01:29.3]} 27. Qc3 {[%clk 0:00:24.2]} 27... Kg8 {[%clk
0:01:29.2]} 28. Nd4 {[%clk 0:00:22]} 28... Ne7 {[%clk 0:01:27]} 29. Nb5 {[%clk
0:00:20.9]} 29... Ned5 {[%clk 0:01:25.4]} 30. Qe1 {[%clk 0:00:20.9]} 30... Qxa4
{[%clk 0:01:25.3]} 31. Nd4 {[%clk 0:00:19.7]} 31... Qe8 {[%clk 0:01:25.1]} 32.
Qe2 {[%clk 0:00:15.4]} 32... a4 {[%clk 0:01:19.6]} 33. Qc4 {[%clk 0:00:13.9]}
33... Qf7 {[%clk 0:01:19.2]} 34. Nf5 {[%clk 0:00:13.7]} 34... Nxe3 {[%clk
0:01:15.1]} 35. Rxd8+ {[%clk 0:00:13.9]} 35... Rxd8 {[%clk 0:01:14.8]} 36. Nxe3
{[%clk 0:00:08]} 36... Nd3 {[%clk 0:01:13.5]} 37. Rd1 {[%clk 0:00:03.3]} 37...
Qxc4 {[%clk 0:00:54.2]} 38. Nxc4 {[%clk 0:00:04.2]} 38... Rd7 {[%clk 0:00:54.2]}
39. c6 {[%clk 0:00:02.2]} 39... bxc6 {[%clk 0:00:55.1]} 40. Na5 {[%clk
0:00:02.5]} 40... c5 {[%clk 0:00:52]} 41. Nc4 {[%clk 0:00:02.8]} 41... Rd4
{[%clk 0:00:51.8]} 42. Na3 {[%clk 0:00:02.9]} 42... Ne5 {[%clk 0:00:49.4]} 43.
Rc1 {[%clk 0:00:02.7]} 43... Rd3 {[%clk 0:00:49.9]} 44. Nb5 {[%clk 0:00:01.9]}
44... c4 {[%clk 0:00:50.6]} 45. Nc3 {[%clk 0:00:01.6]} 45... a3 {[%clk 0:00:51]}
46. Rc2 {[%clk 0:00:01.8]} 46... Nc6 {[%clk 0:00:47.7]} 47. Kh2 {[%clk
0:00:01.4]} 47... Nb4 {[%clk 0:00:46.1]} 48. Rc1 {[%clk 0:00:01.4]} 48... Rxc3
{[%clk 0:00:43.1]} 49. Rxc3 {[%clk 0:00:02]} 49... a2 {[%clk 0:00:43.7]} 50. Rc1
{[%clk 0:00:01.7]} 50... c3 {[%clk 0:00:42.8]} 51. Ra1 {[%clk 0:00:01.6]} 51...
c2 {[%clk 0:00:43.4]} 52. Kg3 {[%clk 0:00:02]} 52... Nd3 {[%clk 0:00:43.9]} 0-1

[Event "Late-Titled-Tuesday-Blitz-January-16-2024"]
[Site "Chess.com"]
[Date "2024.01.16"]
[Round "11"]
[White "GothamChess"]
[Black "HaryKane"]
[Result "1-0"]
[WhiteElo "2752"]
[BlackElo "2573"]
[TimeControl "180+1"]
[EndTime "16:06:53 PST"]
[Termination "GothamChess won by resignation"]

1. d4 {[%clk 0:02:16.8]} 1... e6 {[%clk 0:03:00.9]} 2. Nf3 {[%clk 0:01:56.5]}
2... f5 {[%clk 0:03:00.9]} 3. d5 {[%clk 0:01:53.7]} 3... Nf6 {[%clk 0:03:00.5]}
4. Nc3 {[%clk 0:01:52.2]} 4... Bb4 {[%clk 0:02:56.7]} 5. dxe6 {[%clk 0:01:45.9]}
5... d5 {[%clk 0:02:56.7]} 6. Qd3 {[%clk 0:01:38.5]} 6... Bxe6 {[%clk
0:02:52.8]} 7. Nd4 {[%clk 0:01:33.9]} 7... Bd7 {[%clk 0:02:44]} 8. a3 {[%clk
0:01:31]} 8... Bxc3+ {[%clk 0:02:36.6]} 9. Qxc3 {[%clk 0:01:31.3]} 9... O-O
{[%clk 0:02:35.4]} 10. Bf4 {[%clk 0:01:26.1]} 10... Nc6 {[%clk 0:02:30.3]} 11.
Nxc6 {[%clk 0:01:19.3]} 11... Bxc6 {[%clk 0:02:25.6]} 12. O-O-O {[%clk
0:01:18.8]} 12... Ne4 {[%clk 0:02:20.6]} 13. Qe1 {[%clk 0:01:15.6]} 13... Qe7
{[%clk 0:01:58.2]} 14. f3 {[%clk 0:01:13.7]} 14... Nd6 {[%clk 0:01:55]} 15. Qb4
{[%clk 0:01:04.8]} 15... a5 {[%clk 0:01:34.7]} 16. Qc5 {[%clk 0:01:04.2]} 16...
Rfe8 {[%clk 0:01:25.8]} 17. e3 {[%clk 0:00:44.1]} 17... g5 {[%clk 0:01:23.2]}
18. Bxd6 {[%clk 0:00:31.8]} 18... cxd6 {[%clk 0:01:24.1]} 19. Qd4 {[%clk
0:00:23.5]} 19... Qxe3+ {[%clk 0:01:23.5]} 20. Qxe3 {[%clk 0:00:23.7]} 20...
Rxe3 {[%clk 0:01:24.4]} 21. Bd3 {[%clk 0:00:23.8]} 21... f4 {[%clk 0:01:19.9]}
22. h4 {[%clk 0:00:24]} 22... g4 {[%clk 0:01:11.9]} 23. fxg4 {[%clk 0:00:20]}
23... Rg3 {[%clk 0:01:10.6]} 24. Bf5 {[%clk 0:00:14.8]} 24... Re8 {[%clk
0:00:56.3]} 25. Rhf1 {[%clk 0:00:13.3]} 25... Rxg2 {[%clk 0:00:54.5]} 26. Rxf4
{[%clk 0:00:13.6]} 26... Ree2 {[%clk 0:00:54.4]} 27. Kb1 {[%clk 0:00:08.4]}
27... Kg7 {[%clk 0:00:49.6]} 28. h5 {[%clk 0:00:08.3]} 28... Rgf2 {[%clk
0:00:44.8]} 29. Rxf2 {[%clk 0:00:05]} 29... Rxf2 {[%clk 0:00:45.7]} 30. Re1
{[%clk 0:00:05.5]} 30... d4 {[%clk 0:00:33.9]} 31. Re7+ {[%clk 0:00:04.4]} 31...
Kf6 {[%clk 0:00:33.9]} 32. Re6+ {[%clk 0:00:04.8]} 32... Kg5 {[%clk 0:00:31.3]}
33. Rxd6 {[%clk 0:00:05.4]} 33... Rd2 {[%clk 0:00:28.3]} 34. Kc1 {[%clk
0:00:04.4]} 34... Rf2 {[%clk 0:00:25.8]} 35. Rxd4 {[%clk 0:00:05]} 35... h6
{[%clk 0:00:25.3]} 36. b3 {[%clk 0:00:03.8]} 36... a4 {[%clk 0:00:21.5]} 37.
bxa4 {[%clk 0:00:03.6]} 37... Rf3 {[%clk 0:00:20.8]} 38. Kb2 {[%clk 0:00:03.8]}
38... Rf2 {[%clk 0:00:20.5]} 39. a5 {[%clk 0:00:03.6]} 39... Re2 {[%clk
0:00:19.4]} 40. Rd6 {[%clk 0:00:03.9]} 40... Re5 {[%clk 0:00:18.1]} 41. Rg6+
{[%clk 0:00:03.9]} 41... Kf4 {[%clk 0:00:18.7]} 42. Rxh6 {[%clk 0:00:04]} 42...
Rb5+ {[%clk 0:00:19.6]} 43. Kc1 {[%clk 0:00:04.1]} 43... Rxa5 {[%clk 0:00:20.5]}
44. Rd6 {[%clk 0:00:03.7]} 44... Rxa3 {[%clk 0:00:19.7]} 45. h6 {[%clk
0:00:04.3]} 45... Ra1+ {[%clk 0:00:18.8]} 46. Kb2 {[%clk 0:00:04.8]} 46... Rh1
{[%clk 0:00:19.6]} 47. h7 {[%clk 0:00:05.3]} 47... Be4 {[%clk 0:00:17]} 48. Rd4
{[%clk 0:00:05]} 1-0

[Event "Late-Titled-Tuesday-Blitz-January-16-2024"]
[Site "Chess.com"]
[Date "2024.01.16"]
[Round "11"]
[White "KNVB"]
[Black "nfds"]
[Result "1-0"]
[WhiteElo "2690"]
[BlackElo "2483"]
[TimeControl "180+1"]
[EndTime "16:06:54 PST"]
[Termination "KNVB won on time"]

1. d4 {[%clk 0:03:00.9]} 1... d6 {[%clk 0:02:25.3]} 2. e4 {[%clk 0:03:00]} 2...
e5 {[%clk 0:02:13]} 3. dxe5 {[%clk 0:02:59.2]} 3... dxe5 {[%clk 0:02:11.4]} 4.
Qxd8+ {[%clk 0:03:00.1]} 4... Kxd8 {[%clk 0:02:11.9]} 5. Bc4 {[%clk 0:03:00.8]}
5... f6 {[%clk 0:02:10.4]} 6. Be3 {[%clk 0:03:01.1]} 6... c6 {[%clk 0:02:00.5]}
7. a4 {[%clk 0:03:01.3]} 7... Kc7 {[%clk 0:01:59.1]} 8. Nd2 {[%clk 0:03:01.7]}
8... Nd7 {[%clk 0:01:57.7]} 9. Ne2 {[%clk 0:03:02.1]} 9... Bc5 {[%clk
0:01:53.2]} 10. Nf1 {[%clk 0:03:02.4]} 10... Ne7 {[%clk 0:01:50.8]} 11. O-O-O
{[%clk 0:03:02.7]} 11... Bxe3+ {[%clk 0:01:47.9]} 12. Nxe3 {[%clk 0:03:03.6]}
12... Nc5 {[%clk 0:01:48.4]} 13. Nc3 {[%clk 0:03:00.3]} 13... Be6 {[%clk
0:01:39.7]} 14. b4 {[%clk 0:02:21.5]} 14... Bxc4 {[%clk 0:01:34.8]} 15. Nxc4
{[%clk 0:02:22.4]} 15... Ne6 {[%clk 0:01:29]} 16. Ne2 {[%clk 0:02:22.8]} 16...
Rad8 {[%clk 0:01:07.8]} 17. c3 {[%clk 0:02:20.7]} 17... h5 {[%clk 0:01:00.5]}
18. h4 {[%clk 0:02:17.9]} 18... Rxd1+ {[%clk 0:00:53.7]} 19. Rxd1 {[%clk
0:02:18.8]} 19... g5 {[%clk 0:00:54.1]} 20. Rh1 {[%clk 0:02:18.2]} 20... g4
{[%clk 0:00:46.5]} 21. Ng3 {[%clk 0:01:53.3]} 21... Nf4 {[%clk 0:00:45.3]} 22.
Ne3 {[%clk 0:01:54]} 22... Rd8 {[%clk 0:00:37.5]} 23. Kc2 {[%clk 0:01:54.3]}
23... a5 {[%clk 0:00:29]} 24. bxa5 {[%clk 0:01:24.2]} 24... Ra8 {[%clk
0:00:26.7]} 25. Nc4 {[%clk 0:01:25]} 25... Neg6 {[%clk 0:00:17.4]} 26. Rh2
{[%clk 0:01:13.4]} 26... Rd8 {[%clk 0:00:09.7]} 27. Nf5 {[%clk 0:01:10.8]} 27...
Nd3 {[%clk 0:00:08.7]} 28. g3 {[%clk 0:00:40]} 28... Nc5 {[%clk 0:00:07.9]} 29.
Nd2 {[%clk 0:00:40.7]} 29... Nxa4 {[%clk 0:00:06.4]} 30. Ng7 {[%clk 0:00:41.4]}
30... Nf8 {[%clk 0:00:02.8]} 31. Nxh5 {[%clk 0:00:41.2]} 31... Ra8 {[%clk
0:00:01.7]} 32. Nb3 {[%clk 0:00:40.4]} 32... Nd7 {[%clk 0:00:01.7]} 33. Ng7
{[%clk 0:00:40.1]} 33... b6 {[%clk 0:00:01.2]} 34. axb6+ {[%clk 0:00:39.8]}
34... Naxb6 {[%clk 0:00:02.1]} 35. Kb1 {[%clk 0:00:38.3]} 35... Nc4 {[%clk
0:00:02.4]} 36. h5 {[%clk 0:00:35.9]} 36... Ra3 {[%clk 0:00:02.8]} 37. Nc1
{[%clk 0:00:21.7]} 37... Rxc3 {[%clk 0:00:02.4]} 38. h6 {[%clk 0:00:22.4]} 38...
Nc5 {[%clk 0:00:02.6]} 39. h7 {[%clk 0:00:22.1]} 39... Nd2+ {[%clk 0:00:03]} 40.
Kb2 {[%clk 0:00:22]} 40... Na4+ {[%clk 0:00:03.5]} 41. Ka2 {[%clk 0:00:21.8]}
41... Rxc1 {[%clk 0:00:02.2]} 42. h8=Q {[%clk 0:00:21.8]} 42... Rc2+ {[%clk
0:00:02.4]} 43. Ka3 {[%clk 0:00:21.5]} 43... Nc5 {[%clk 0:00:02.4]} 44. Ne6+
{[%clk 0:00:11.8]} 1-0

[Event "Late-Titled-Tuesday-Blitz-January-16-2024"]
[Site "Chess.com"]
[Date "2024.01.16"]
[Round "11"]
[White "rdarruda"]
[Black "Bastiandash"]
[Result "1-0"]
[WhiteElo "2497"]
[BlackElo "2500"]
[TimeControl "180+1"]
[EndTime "16:06:54 PST"]
[Termination "rdarruda won by resignation"]

1. d4 {[%clk 0:02:58]} 1... d6 {[%clk 0:03:00.8]} 2. e4 {[%clk 0:02:55.9]} 2...
g6 {[%clk 0:03:00.8]} 3. Nc3 {[%clk 0:02:55.5]} 3... Bg7 {[%clk 0:03:01]} 4. Nf3
{[%clk 0:02:55.7]} 4... Nc6 {[%clk 0:02:59.8]} 5. d5 {[%clk 0:02:54.4]} 5... Nb8
{[%clk 0:03:00.1]} 6. Bf4 {[%clk 0:02:53.4]} 6... Nf6 {[%clk 0:03:00.5]} 7. Qd2
{[%clk 0:02:52.8]} 7... O-O {[%clk 0:02:56.7]} 8. Bh6 {[%clk 0:02:52.8]} 8... e6
{[%clk 0:02:55.1]} 9. dxe6 {[%clk 0:02:49.2]} 9... Bxe6 {[%clk 0:02:49]} 10.
O-O-O {[%clk 0:02:49.2]} 10... Nc6 {[%clk 0:02:42.3]} 11. Bxg7 {[%clk
0:02:48.9]} 11... Kxg7 {[%clk 0:02:43.2]} 12. Nd4 {[%clk 0:02:48.4]} 12... Nxd4
{[%clk 0:02:38]} 13. Qxd4 {[%clk 0:02:49.3]} 13... Qe7 {[%clk 0:02:37.9]} 14.
Bc4 {[%clk 0:02:44.4]} 14... Rfe8 {[%clk 0:02:24.3]} 15. Rhe1 {[%clk 0:02:42.2]}
15... Bxc4 {[%clk 0:02:07.8]} 16. Qxc4 {[%clk 0:02:43.1]} 16... Qe6 {[%clk
0:02:06.7]} 17. Qxc7 {[%clk 0:02:36.7]} 17... Rad8 {[%clk 0:02:01.2]} 18. Qa5
{[%clk 0:02:34.9]} 18... a6 {[%clk 0:01:56.7]} 19. f3 {[%clk 0:02:33.5]} 19...
Rc8 {[%clk 0:01:52.3]} 20. Nd5 {[%clk 0:02:27.1]} 20... Rc6 {[%clk 0:01:51.9]}
21. Qd2 {[%clk 0:02:22.3]} 21... Rec8 {[%clk 0:01:50.3]} 22. c3 {[%clk
0:02:22.7]} 22... Qe5 {[%clk 0:01:48.9]} 23. Qd4 {[%clk 0:02:19.6]} 23... Qxd4
{[%clk 0:01:47.8]} 24. Rxd4 {[%clk 0:02:18.5]} 24... Nxd5 {[%clk 0:01:44.9]} 25.
Rxd5 {[%clk 0:02:19.4]} 25... Kf6 {[%clk 0:01:45.4]} 26. Red1 {[%clk 0:02:12.2]}
26... Ke6 {[%clk 0:01:45.5]} 27. Kc2 {[%clk 0:02:08.3]} 27... b5 {[%clk
0:01:45.3]} 28. a3 {[%clk 0:02:07.5]} 28... Rb8 {[%clk 0:01:45.5]} 29. R1d4
{[%clk 0:02:05.4]} 29... a5 {[%clk 0:01:45.6]} 30. f4 {[%clk 0:01:51.8]} 30...
b4 {[%clk 0:01:45.5]} 31. axb4 {[%clk 0:01:52.3]} 31... axb4 {[%clk 0:01:46.4]}
32. f5+ {[%clk 0:01:50.5]} 32... Ke7 {[%clk 0:01:42.3]} 33. c4 {[%clk
0:01:45.3]} 33... Rg8 {[%clk 0:01:25.6]} 34. g3 {[%clk 0:01:32.3]} 34... Ra8
{[%clk 0:01:13.1]} 35. Kb3 {[%clk 0:01:31.6]} 35... Ra1 {[%clk 0:01:02.4]} 36.
fxg6 {[%clk 0:01:30.4]} 36... hxg6 {[%clk 0:01:02.2]} 37. Rd1 {[%clk 0:01:29.5]}
37... Ra8 {[%clk 0:00:54]} 38. e5 {[%clk 0:01:28.9]} 38... dxe5 {[%clk
0:00:53.9]} 39. Rxe5+ {[%clk 0:01:29.8]} 39... Kf6 {[%clk 0:00:54.8]} 40. Red5
{[%clk 0:01:28.7]} 40... Rac8 {[%clk 0:00:54.5]} 41. Rd6+ {[%clk 0:01:28.3]}
41... Rxd6 {[%clk 0:00:52.5]} 42. Rxd6+ {[%clk 0:01:29.2]} 42... Ke5 {[%clk
0:00:53.4]} 43. Rd2 {[%clk 0:01:24.9]} 43... f5 {[%clk 0:00:53.3]} 44. Kxb4
{[%clk 0:01:24.1]} 44... g5 {[%clk 0:00:53.2]} 45. Kc3 {[%clk 0:01:15.8]} 45...
Ke4 {[%clk 0:00:43.9]} 46. Re2+ {[%clk 0:01:02.8]} 46... Kf3 {[%clk 0:00:44.2]}
47. Re5 {[%clk 0:01:02.7]} 47... Kg4 {[%clk 0:00:43.5]} 48. b4 {[%clk
0:00:59.4]} 48... f4 {[%clk 0:00:44.4]} 49. b5 {[%clk 0:00:56.9]} 49... f3
{[%clk 0:00:42.3]} 50. Re1 {[%clk 0:00:56.8]} 50... f2 {[%clk 0:00:27]} 51. Rb1
{[%clk 0:00:54.7]} 51... Kf3 {[%clk 0:00:14.8]} 52. b6 {[%clk 0:00:53.6]} 52...
Kg2 {[%clk 0:00:12.7]} 53. Kd4 {[%clk 0:00:43.5]} 53... f1=Q {[%clk 0:00:11.1]}
54. Rxf1 {[%clk 0:00:43.6]} 54... Kxf1 {[%clk 0:00:12]} 55. c5 {[%clk 0:00:44]}
55... Kg2 {[%clk 0:00:12]} 56. b7 {[%clk 0:00:44.2]} 56... Rd8+ {[%clk
0:00:09.7]} 57. Ke5 {[%clk 0:00:44.3]} 57... Kxh2 {[%clk 0:00:10.6]} 58. c6
{[%clk 0:00:44.2]} 58... Kxg3 {[%clk 0:00:10.2]} 59. c7 {[%clk 0:00:44.3]} 59...
Re8+ {[%clk 0:00:10.8]} 60. Kf5 {[%clk 0:00:43.2]} 1-0

[Event "Late-Titled-Tuesday-Blitz-January-16-2024"]
[Site "Chess.com"]
[Date "2024.01.16"]
[Round "11"]
[White "scandalgod"]
[Black "AlexLongson"]
[Result "1-0"]
[WhiteElo "2526"]
[BlackElo "2388"]
[TimeControl "180+1"]
[EndTime "16:06:58 PST"]
[Termination "scandalgod won on time"]

1. d4 {[%clk 0:02:56.9]} 1... Nf6 {[%clk 0:02:59.6]} 2. c4 {[%clk 0:02:57.1]}
2... g6 {[%clk 0:02:59.7]} 3. Nc3 {[%clk 0:02:56.8]} 3... d5 {[%clk 0:02:59.7]}
4. Bg5 {[%clk 0:02:56.5]} 4... Bg7 {[%clk 0:02:58.7]} 5. Nf3 {[%clk 0:02:53.9]}
5... dxc4 {[%clk 0:02:57]} 6. e3 {[%clk 0:02:53.2]} 6... c5 {[%clk 0:02:48.1]}
7. Bxc4 {[%clk 0:02:52.8]} 7... cxd4 {[%clk 0:02:45.8]} 8. Qxd4 {[%clk
0:02:52.3]} 8... Qxd4 {[%clk 0:02:43]} 9. Nxd4 {[%clk 0:02:51.3]} 9... a6 {[%clk
0:02:43.1]} 10. Rc1 {[%clk 0:02:22.5]} 10... O-O {[%clk 0:02:39.8]} 11. O-O
{[%clk 0:02:15.9]} 11... Bd7 {[%clk 0:02:34.9]} 12. Rfd1 {[%clk 0:02:15.4]}
12... Nc6 {[%clk 0:02:33]} 13. Bxf6 {[%clk 0:02:10.6]} 13... Bxf6 {[%clk
0:02:30.6]} 14. Nd5 {[%clk 0:02:11.2]} 14... Nxd4 {[%clk 0:02:07.5]} 15. exd4
{[%clk 0:02:01.3]} 15... Rfd8 {[%clk 0:01:29.8]} 16. Bb3 {[%clk 0:01:36.6]}
16... Rac8 {[%clk 0:00:33.9]} 17. Rc3 {[%clk 0:01:27.9]} 17... Kf8 {[%clk
0:00:29]} 18. Nxf6 {[%clk 0:01:21.6]} 18... exf6 {[%clk 0:00:29.1]} 19. f3
{[%clk 0:01:19]} 19... Ke7 {[%clk 0:00:24.2]} 20. Kf2 {[%clk 0:01:18.6]} 20...
Be6 {[%clk 0:00:22.1]} 21. d5 {[%clk 0:01:16.2]} 21... Bf5 {[%clk 0:00:17.1]}
22. g4 {[%clk 0:01:13.7]} 22... Rxc3 {[%clk 0:00:16.6]} 23. bxc3 {[%clk
0:01:12.7]} 23... Bc8 {[%clk 0:00:16.6]} 24. Ke3 {[%clk 0:01:08]} 24... Kd6
{[%clk 0:00:16.9]} 25. Kd4 {[%clk 0:01:06]} 25... Re8 {[%clk 0:00:17.2]} 26. a4
{[%clk 0:01:03.7]} 26... a5 {[%clk 0:00:16.1]} 27. Rb1 {[%clk 0:01:00.5]} 27...
Re2 {[%clk 0:00:15.1]} 28. Bc4 {[%clk 0:00:58.6]} 28... Rd2+ {[%clk 0:00:12.3]}
29. Bd3 {[%clk 0:00:53.8]} 29... Rxh2 {[%clk 0:00:12]} 30. Rb6+ {[%clk
0:00:51.8]} 30... Ke7 {[%clk 0:00:12]} 31. c4 {[%clk 0:00:47.1]} 31... h5 {[%clk
0:00:11.2]} 32. gxh5 {[%clk 0:00:45.4]} 32... gxh5 {[%clk 0:00:10.8]} 33. c5
{[%clk 0:00:45.8]} 33... Rh4+ {[%clk 0:00:11]} 34. Ke3 {[%clk 0:00:43.4]} 34...
Rxa4 {[%clk 0:00:10.9]} 35. d6+ {[%clk 0:00:42.8]} 35... Kd8 {[%clk 0:00:10.5]}
36. Rb1 {[%clk 0:00:39.3]} 36... Rb4 {[%clk 0:00:09.3]} 37. Rg1 {[%clk
0:00:36.1]} 37... Be6 {[%clk 0:00:08.8]} 38. Be4 {[%clk 0:00:31.6]} 38... f5
{[%clk 0:00:07.8]} 39. Bd3 {[%clk 0:00:28]} 39... f4+ {[%clk 0:00:06.9]} 40. Kd2
{[%clk 0:00:27]} 40... Rb2+ {[%clk 0:00:06.9]} 41. Kc3 {[%clk 0:00:26.9]} 41...
Rf2 {[%clk 0:00:06.4]} 42. Be4 {[%clk 0:00:26.6]} 42... Bc8 {[%clk 0:00:01.7]}
43. Rg8+ {[%clk 0:00:24.5]} 43... Kd7 {[%clk 0:00:02.2]} 44. Bf5+ {[%clk
0:00:24.4]} 44... Kc6 {[%clk 0:00:01.8]} 45. Rxc8+ {[%clk 0:00:22.8]} 45... Kb5
{[%clk 0:00:02.3]} 46. d7 {[%clk 0:00:21.8]} 46... Rxf3+ {[%clk 0:00:02.9]} 47.
Kd4 {[%clk 0:00:22.1]} 1-0